Workbook

Sheet Summary
A1: Correlation of Geomag Reference Terms, Well to Well
A3: The range of possible relationships
B4: IGRF | C4: Standard | D4: HD #1 | E4: HD #2 | F4: IFR1 #1 | G4: IFR1 #2 | H4: IFR2 #1 | I4: IFR2 #2
A5: IGRF
A6: Standard
A7: HD #1
A8: HD #2
A9: IFR1 #1
A10: IFR1 #2
A11: IFR2 #1
A12: IFR2 #2
A15: ISCWSA MWD error model assumption (correlation coefficient 3 for Global terms)
B16: IGRF | C16: Standard | D16: HD #1 | E16: HD #2 | F16: IFR1 #1 | G16: IFR1 #2 | H16: IFR2 #1 | I16: IFR2 #2
A17: IGRF | B17: 1 | C17: 1 | D17: 1 | E17: 1 | F17: 1 | G17: 1 | H17: 1 | I17: 1
A18: Standard | C18: 1 | D18: 1 | E18: 1 | F18: 1 | G18: 1 | H18: 1 | I18: 1
A19: HD #1 | D19: 1 | E19: 1 | F19: 1 | G19: 1 | H19: 1 | I19: 1
A20: HD #2 | E20: 1 | F20: 1 | G20: 1 | H20: 1 | I20: 1
A21: IFR1 #1 | F21: 1 | G21: 1 | H21: 1 | I21: 1
A22: IFR1 #2 | G22: 1 | H22: 1 | I22: 1
A23: IFR2 #1 | H23: 1 | I23: 1
A24: IFR2 #2 | I24: 1
A27: Current common practice (ignores coefficient 3, and sums covariance matrices)
B28: IGRF | C28: Standard | D28: HD #1 | E28: HD #2 | F28: IFR1 #1 | G28: IFR1 #2 | H28: IFR2 #1 | I28: IFR2 #2
A29: IGRF | B29: 0 | C29: 0 | D29: 0 | E29: 0 | F29: 0 | G29: 0 | H29: 0 | I29: 0
A30: Standard | C30: 0 | D30: 0 | E30: 0 | F30: 0 | G30: 0 | H30: 0 | I30: 0
A31: HD #1 | D31: 0 | E31: 0 | F31: 0 | G31: 0 | H31: 0 | I31: 0
A32: HD #2 | E32: 0 | F32: 0 | G32: 0 | H32: 0 | I32: 0
A33: IFR1 #1 | F33: 0 | G33: 0 | H33: 0 | I33: 0
A34: IFR1 #2 | G34: 0 | H34: 0 | I34: 0
A35: IFR2 #1 | H35: 0 | I35: 0
A36: IFR2 #2 | I36: 0
A39: Estimate of average actual correlation (Stefan's analysis)
B40: IGRF | C40: Standard | D40: HD #1 | E40: HD #2 | F40: IFR1 #1 | G40: IFR1 #2 | H40: IFR2 #1 | I40: IFR2 #2
A41: IGRF | B41: 0.5453133029 | C41: 0.6554014211 | D41: 0.3350437211 | E41: 0.3350437211 | F41: 0.02656365957 | G41: 0.02656365957 | H41: 0.02620766259 | I41: 0.02620766259
A42: Standard | C42: 0.7877289817 | D42: 0.402676991 | E42: 0.402676991 | F42: 0.0318971796 | G42: 0.0318971796 | H42: 0.03147876455 | I42: 0.03147876455
A43: HD #1 | D43: 0.6828924298 | E43: 0.4910687136 | F43: 0.03900418202 | G43: 0.03900418202 | H43: 0.03842151187 | I43: 0.03842151187
A44: HD #2 | E44: 0.6828924298 | F44: 0.03900418202 | G44: 0.03900418202 | H44: 0.03842151187 | I44: 0.03842151187
A45: IFR1 #1 | F45: 0.3869203333 | G45: 0.07738406667 | H45: 0.3907820778 | I45: 0.07815641556
A46: IFR1 #2 | G46: 0.3869203333 | H46: 0.07815641556 | I46: 0.3907820778
A47: IFR2 #1 | H47: 0.4418358977 | I47: 0.08836717953
A48: IFR2 #2 | I48: 0.4418358977

Sheet Correlation matrix
A1: Correlation of geomagnetic reference values integrated for two different wells
A2: The short scales of the crustal anomaly differ for 2 well paths. For standard models 90% of the crustal anomaly along 2 different well paths may be correlated. For HD models, where the long wavelength error is reduced, the correlation may drop to 80%, while for IFR models the remaining ommission error is more short scale, so the crustal omission error may be 70% correlated between two different well paths.
A3: The commission error for HD models is all long wavelength, so is 100% correlated for two different well paths. Since IFR models include very short scales, their commission error is different between two well paths and therefore may be only 70% correlated.
A7: Average correlation in %
B8: IGRF | C8: Standard | D8: HD #1 | E8: HD #2 | F8: IFR1 #1 | G8: IFR1 #2 | H8: IFR2 #1 | I8: IFR2 #2
A9: IGRF | B9: 54.53133029 | C9: 65.54014211 | D9: 33.50437211 | E9: 33.50437211 | F9: 2.656365957 | G9: 2.656365957 | H9: 2.620766259 | I9: 2.620766259
A10: Standard | C10: 78.77289817 | D10: 40.2676991 | E10: 40.2676991 | F10: 3.18971796 | G10: 3.18971796 | H10: 3.147876455 | I10: 3.147876455
A11: HD #1 | D11: 68.28924298 | E11: 49.10687136 | F11: 3.900418202 | G11: 3.900418202 | H11: 3.842151187 | I11: 3.842151187
A12: HD #2 | E12: 68.28924298 | F12: 3.900418202 | G12: 3.900418202 | H12: 3.842151187 | I12: 3.842151187
A13: IFR1 #1 | F13: 38.69203333 | G13: 7.738406667 | H13: 39.07820778 | I13: 7.815641556
A14: IFR1 #2 | G14: 38.69203333 | H14: 7.815641556 | I14: 39.07820778
A15: IFR2 #1 | H15: 44.18358977 | I15: 8.836717953
A16: IFR2 #2 | I16: 44.18358977
A18: Interpretation:
A19: The error of a yearly updated standard model (BGGM, MVSD) is dominated by the crustal omission. 2 Wells referenced with standard models (whether the same or different) therefore share a portion of the the same highly correlated crustal error
A20: The error of a 5-year updated model (IGRF, WMM) has the additional contribution of an uncorrelated main field error. Two such wells share a large part of the correlated crustal omission error but have large uncorrelated main field errors
A21: If one well is referenced with IGRF, the other with BGGM, they share a large correlated crustal omission error and have some additional uncorrelated main field errors.
A22: The errors of high definition models (HDGM, MVHD) are still dominated by largely correlated crustal omission errors. Here the crustal commission error (of the model itself) becomes more important, so that correlations of the errors of 2 different models will be lower than if the same model is used for both wells. Also to consider here is that the HD and IFR models generally provide the large scale part of the crustal anomaly. This is highly correlated between different well trajectories in the same area. However, the crustal omission error is due to the small-scale crustal features that are not part of the model. Because they are small-scale, they can differ substantially between two wellbore trajectories in the same area.
A23: In IFR models, which are meant to represent the entire crustal field, the crustal omission error becomes small, while there is still significant commission error. That commission error is partly correlated between two wells using the same IFR1 method, but is uncorrelated between two different methods. For example, one well may have been referenced using a ground shot while the other was referenced using an aeromagnetic transformation. The errors between these very different IFR1 methods would be largely uncorrelated.
A24: By correcting for the disturbance field (IFR2), one reduces a source of uncorrelated error. Therefore two IFR2 wells sharing the same crustal correction have higher correlated errors than two IFR1 wells.
A25: If one well is referenced with IFR1 and the other with IFR2 (additional disturbance field correction), but both share the same crustal correction, then this is denoted here by IFR1-#1 and IFR2-#1. They then share part of the crustal omission and commission errors, leading to partly correlated errors.

Sheet Numerical derivation
B1: 5-year public models (IGRF, WMM) | F1: 1-year Standard Definition (BGGM, MVSD) | J1: 1-year High Definition (HDGM, MVHD) | N1: In-Field Referencing (IFR1) | R1: IFR1 + Disturbance field correction (IFR2)
A2: Error type | B2: DECG | C2: DBHG | D2: MFIG | E2: MDIG | F2: DECG | G2: DBHG | H2: MFIG | I2: MDIG | J2: DECG | K2: DBHG | L2: MFIG | M2: MDIG | N2: DECG | O2: DBHG | P2: MFIG | Q2: MDIG | R2: DECG | S2: DBHG | T2: MFIG | U2: MDIG
A3: Main field error | B3: =SQRT(B7*B7-F7*F7+F3*F3) -> 0.2385372088 | C3: =SQRT(C7*C7-G7*G7+G3*G3) -> 3405.707122 | D3: 88.98314447 | E3: 0.1341640786 | F3: 0.04 | G3: 500 | H3: 13 | I3: 0.02 | J3: 0.04 | K3: 500 | L3: 13 | M3: 0.02 | N3: 0.04 | O3: 500 | P3: 13 | Q3: 0.02 | R3: 0.04 | S3: 500 | T3: 13 | U3: 0.02
A4: Crustal commision error | J4: =SQRT((J7*J7-J3*J3-J6*J6)*1/5) -> 0.1328909327 | K4: =SQRT((K7*K7-K3*K3-K6*K6)*1/5) -> 1788.984293 | L4: 46.46719273 | M4: 0.07042726745 | N4: =SQRT((N7*N7-N3*N3-N6*N6)*4/5) -> 0.128996124 | O4: =SQRT((O7*O7-O3*O3-O6*O6)*4/5) -> 1017.605031 | P4: 38.43956295 | Q4: =SQRT((Q7*Q7-Q3*Q3-Q6*Q6)*4/5) -> 0.08579044236 | R4: =SQRT((R7*R7-R3*R3-R6*R6)*4/5) -> 0.129305839 | S4: 1017.555895 | T4: 38.43956295 | U4: 0.0692820323
A5: Crustal omission error | B5: =SQRT(B7*B7-B3*B3-B6*B6) -> 0.3576310948 | C5: 4903.508948 | D5: 127.4637203 | E5: 0.1979898987 | F5: =SQRT(F7*F7-F3*F3-F6*F6) -> 0.3576310948 | G5: =SQRT(G7*G7-G3*G3-G6*G6) -> 4903.508948 | H5: 127.4637203 | I5: 0.1979898987 | J5: =SQRT((J7*J7-J3*J3-J6*J6)*4/5) -> 0.2657818654 | K5: =SQRT((K7*K7-K3*K3-K6*K6)*4/5) -> 3577.968586 | L5: =SQRT((L7*L7-L3*L3-L6*L6)*4/5) -> 92.93438546 | M5: =SQRT((M7*M7-M3*M3-M6*M6)*4/5) -> 0.1408545349 | N5: =SQRT((N7*N7-N3*N3-N6*N6)*1/5) -> 0.06449806199 | O5: =SQRT((O7*O7-O3*O3-O6*O6)*1/5) -> 508.8025157 | P5: 19.21978148 | Q5: =SQRT((Q7*Q7-Q3*Q3-Q6*Q6)*1/5) -> 0.04289522118 | R5: =SQRT((R7*R7-R3*R3-R6*R6)*1/5) -> 0.0646529195 | S5: 508.7779476 | T5: 19.21978148 | U5: 0.03464101615
A6: Disturbance field error | B6: 0.01 | C6: 840 | D6: 22 | E6: 0.02 | F6: 0.01 | G6: 840 | H6: 22 | I6: 0.02 | J6: 0.01 | K6: 840 | L6: 22 | M6: 0.02 | N6: 0.01 | O6: 840 | P6: 22 | Q6: 0.02 | R6: 0 | S6: 135 | T6: 3 | U6: 0
A7: Root Sum Square | B7: 0.43 | C7: 6029 | D7: 157 | E7: 0.24 | F7: 0.36 | G7: 5000 | H7: 130 | I7: 0.2 | J7: 0.3 | K7: 4118 | L7: 107 | M7: 0.16 | N7: 0.15 | O7: 1500 | P7: 50 | Q7: 0.1 | R7: 0.15 | S7: 1250 | T7: 45 | U7: 0.08
A9: Bold=ISCWSA/OWSG | C9: Blue=Assumptions based on earlier studies | H9: Green = Computed from the black squared minus the blue squared values
A11: Assumptions:
A12: For the 1-year models, the main field error is 1/10th of the total error
A13: For High Definition models, the crustal comission error is half as high as the crustal ommission error | J13: Commission error is the error of the model in representing what it should be representing
A14: For IFR models, the crustal comission error is twice as high as the crustal ommission error | J14: Omission error is the error due to the model not representing parts of the field (e.g. IGRF not having a crustal component)
A15: The short scales of the crustal anomaly differ for 2 well paths. For standard models 90% of the crustal anomaly along 2 different well paths may be correlated. For HD models, where the long wavelength error is reduced, the correlation may drop to 80%, while for IFR models the remaining ommission error is more short scale, so the crustal omission error may be 70% correlated.
A16: The commission error for HD models is all long wavelength, so is 100% correlated for two different well paths. Since IFR models include very short scales, their commission error may be different between two well paths and therefore maybe only 70% correlated.
B18: IGRF | C18: Standard | D18: Highdef | E18: IFR1 | F18: IFR2
A19: Crustal commission error correlation | D19: 1 | E19: 0.7 | F19: 0.7
A20: Crustal ommission error correlation | B20: 0.9 | C20: 0.9 | D20: 0.8 | E20: 0.7 | F20: 0.7
A22: Error type | B22: Between same model* | E22: Between different model/method
A23: Main field error | B23: uncorrelated | E23: uncorrelated | J23: Since the main field changes over time, main field errors would only correlated within the same model for a short time period
A24: Crust commision error | B24: correlated | E24: uncorrelated | J24: The crustal commission error is inherrently tied to the constant crustal part of a model, so correlated within model but uncorrelated to others
A25: Crust omission error | B25: partly correlated | E25: partly correlated | J25: The crustal omission error is correlated even between different models, as long as the same parts of the crust are omitted
A26: Disturbance field error | B26: uncorrelated | E26: uncorrelated | J26: The global portion of the disturbance field changes over time and is therefore uncorrelated, even within the same model
A27: *IFR1-#1 and IFR2-#1 are assumed here to have the same crustal model, the errors of which are therefore correlated, same for IFR1-#2 and IFR2-#2
A29: Correlation = Square of correlated error / (sigmaA * sigmaB)
A31: DECG
B32: IGRF | C32: Standard | D32: Highdef | E32: IFR1 | F32: IFR2
A33: Crustal commision error | B33: =B4 -> 0 | C33: =F4 -> 0 | D33: =J4 -> 0.1328909327 | E33: =E19*N4 -> 0.09029728678 | F33: =F19*R4 -> 0.0905140873
A34: Correlated crustal omission | B34: =B20*B5 -> 0.3218679854 | C34: =C20*F5 -> 0.3218679854 | D34: =D20*J5 -> 0.2126254924 | E34: =E20*N5 -> 0.04514864339 | F34: =F20*R5 -> 0.04525704365
A35: Root Sum Square | B35: =B7 -> 0.43 | C35: =F7 -> 0.36 | D35: =J7 -> 0.3 | E35: =N7 -> 0.15 | F35: =R7 -> 0.15
B37: IGRF | C37: Standard | D37: HD #1 | E37: HD #2 | F37: IFR1 #1 | G37: IFR1 #2 | H37: IFR2 #1 | I37: IFR2 #2
A38: IGRF | B38: =B34*B34/(B35*B35) -> 0.5602974581 | C38: =B34*C34/B35/C35 -> 0.669244186 | D38: =D34*D34/B35/D35 -> 0.3504620155 | E38: =D38 -> 0.3504620155 | F38: =E34*E34/B35/E35 -> 0.03160310078 | G38: =F38 -> 0.03160310078 | H38: =F34*F34/B35/F35 -> 0.03175503876 | I38: =H38 -> 0.03175503876
A39: Standard | C39: =C34*C34/C35/C35 -> 0.799375 | D39: =D34*D34/C35/D35 -> 0.4186074074 | E39: 0.4186074074 | F39: =E34*E34/C35/E35 -> 0.03774814815 | G39: =F39 -> 0.03774814815 | H39: =F34*F34/C35/F35 -> 0.03792962963 | I39: =H39 -> 0.03792962963
A40: HD #1 | D40: =(D34*D34+D33*D33)/D35/D35 -> 0.6985511111 | E40: =D34*D34/D35/D35 -> 0.5023288889 | F40: =E34*E34/D35/E35 -> 0.04529777778 | G40: 0.04529777778 | H40: =F34*F34/D35/F35 -> 0.04551555556 | I40: 0.04551555556
A41: HD #2 | E41: =D40 -> 0.6985511111 | F41: =F40 -> 0.04529777778 | G41: 0.04529777778 | H41: =H40 -> 0.04551555556 | I41: 0.04551555556
A42: IFR1 #1 | F42: =(E34*E34+E33*E33)/E35/E35 -> 0.4529777778 | G42: =E34*E34/E35/E35 -> 0.09059555556 | H42: =(F34*F34+F33*F33)/E35/F35 -> 0.4551555556 | I42: =H43 -> 0.09103111111
A43: IFR1 #2 | G43: =F42 -> 0.4529777778 | H43: =F34*F34/E35/F35 -> 0.09103111111 | I43: =H42 -> 0.4551555556
A44: IFR2 #1 | H44: =(F34*F34+F33*F33)/F35/F35 -> 0.4551555556 | I44: =F34*F34/F35/F35 -> 0.09103111111
A45: IFR2 #2 | I45: =H44 -> 0.4551555556
A47: DBHG
B48: IGRF | C48: Standard | D48: Highdef | E48: IFR1 | F48: IFR2
A49: =A33 -> Crustal commision error | B49: =C4 -> 0 | C49: =G4 -> 0 | D49: =K4 -> 1788.984293 | E49: =E19*O4 -> 712.323522 | F49: =F19*S4 -> 712.2891267
A50: =A34 -> Correlated crustal omission | B50: =B20*C5 -> 4413.158053 | C50: =C20*G5 -> 4413.158053 | D50: =D20*K5 -> 2862.374869 | E50: =E20*O5 -> 356.161761 | F50: =F20*S5 -> 356.1445633
A51: Root Sum Square | B51: =C7 -> 6029 | C51: =G7 -> 5000 | D51: =K7 -> 4118 | E51: =O7 -> 1500 | F51: =S7 -> 1250
B53: IGRF | C53: Standard | D53: HD #1 | E53: HD #2 | F53: IFR1 #1 | G53: IFR1 #2 | H53: IFR2 #1 | I53: IFR2 #2
A54: IGRF | B54: =B50*B50/(B51*B51) -> 0.5358070151 | C54: =B50*C50/B51/C51 -> 0.6460760989 | D54: =D50*D50/B51/D51 -> 0.3300056642 | E54: =D54 -> 0.3300056642 | F54: =E50*E50/B51/E51 -> 0.01402678167 | G54: =F54 -> 0.01402678167 | H54: =F50*F50/B51/F51 -> 0.01683051252 | I54: =H54 -> 0.01683051252
A55: Standard | C55: =C50*C50/C51/C51 -> 0.77903856 | D55: =D50*D50/C51/D51 -> 0.3979208299 | E55: 0.3979208299 | F55: =E50*E50/C51/E51 -> 0.01691349333 | G55: =F55 -> 0.01691349333 | H55: =F50*F50/C51/F51 -> 0.020294232 | I55: =H55 -> 0.020294232
A56: HD #1 | D56: =(D50*D50+D49*D49)/D51/D51 -> 0.671877919 | E56: =D50*D50/D51/D51 -> 0.4831481665 | F56: =E50*E50/D51/E51 -> 0.0205360531 | G56: 0.0205360531 | H56: =F50*F50/D51/F51 -> 0.02464088392 | I56: 0.02464088392
A57: HD #2 | E57: =D56 -> 0.671877919 | F57: =F56 -> 0.0205360531 | G57: 0.0205360531 | H57: =H56 -> 0.02464088392 | I57: 0.02464088392
A58: IFR1 #1 | F58: =(E50*E50+E49*E49)/E51/E51 -> 0.2818915556 | G58: =E50*E50/E51/E51 -> 0.05637831111 | H58: =(F50*F50+F49*F49)/E51/F51 -> 0.3382372 | I58: =H59 -> 0.06764744
A59: IFR1 #2 | G59: =F58 -> 0.2818915556 | H59: =F50*F50/E51/F51 -> 0.06764744 | I59: =H58 -> 0.3382372
A60: IFR2 #1 | H60: =(F50*F50+F49*F49)/F51/F51 -> 0.40588464 | I60: =F50*F50/F51/F51 -> 0.081176928
A61: IFR2 #2 | I61: =H60 -> 0.40588464
A63: MFIG
B64: IGRF | C64: Standard | D64: Highdef | E64: IFR1 | F64: IFR2
A65: =A49 -> Crustal commision error | B65: =D4 -> 0 | C65: =H4 -> 0 | D65: =L4 -> 46.46719273 | E65: =E19*P4 -> 26.90769407 | F65: =F19*T4 -> 26.90769407
A66: =A50 -> Correlated crustal omission | B66: =B20*D5 -> 114.7173483 | C66: =C20*H5 -> 114.7173483 | D66: =D20*L5 -> 74.34750836 | E66: =E20*P5 -> 13.45384703 | F66: =F20*T5 -> 13.45384703
A67: Root Sum Square | B67: =D7 -> 157 | C67: =H7 -> 130 | D67: =L7 -> 107 | E67: =P7 -> 50 | F67: =T7 -> 45
B69: IGRF | C69: Standard | D69: HD #1 | E69: HD #2 | F69: IFR1 #1 | G69: IFR1 #2 | H69: IFR2 #1 | I69: IFR2 #2
A70: IGRF | B70: =B66*B66/(B67*B67) -> 0.5338987383 | C70: =B66*C66/B67/C67 -> 0.6447853993 | D70: =D66*D66/B67/D67 -> 0.3290405381 | E70: =D70 -> 0.3290405381 | F70: =E66*E66/B67/E67 -> 0.02305808917 | G70: =F70 -> 0.02305808917 | H70: =F66*F66/B67/F67 -> 0.02562009908 | I70: =H70 -> 0.02562009908
A71: Standard | C71: =C66*C66/C67/C67 -> 0.7787023669 | D71: =D66*D66/C67/D67 -> 0.3973797268 | E71: 0.3973797268 | F71: =E66*E66/C67/E67 -> 0.02784707692 | G71: =F71 -> 0.02784707692 | H71: =F66*F66/C67/F67 -> 0.03094119658 | I71: =H71 -> 0.03094119658
A72: HD #1 | D72: =(D66*D66+D65*D65)/D67/D67 -> 0.6713906891 | E72: =D66*D66/D67/D67 -> 0.4827977989 | F72: =E66*E66/D67/E67 -> 0.0338328972 | G72: 0.0338328972 | H72: =F66*F66/D67/F67 -> 0.037592108 | I72: 0.037592108
A73: HD #2 | E73: =D72 -> 0.6713906891 | F73: =F72 -> 0.0338328972 | G73: 0.0338328972 | H73: =H72 -> 0.037592108 | I73: 0.037592108
A74: IFR1 #1 | F74: =(E66*E66+E65*E65)/E67/E67 -> 0.362012 | G74: =E66*E66/E67/E67 -> 0.0724024 | H74: =(F66*F66+F65*F65)/E67/F67 -> 0.4022355556 | I74: =H75 -> 0.08044711111
A75: IFR1 #2 | G75: =F74 -> 0.362012 | H75: =F66*F66/E67/F67 -> 0.08044711111 | I75: =H74 -> 0.4022355556
A76: IFR2 #1 | H76: =(F66*F66+F65*F65)/F67/F67 -> 0.4469283951 | I76: =F66*F66/F67/F67 -> 0.08938567901
A77: IFR2 #2 | I77: =H76 -> 0.4469283951
A79: MDIG
B80: IGRF | C80: Standard | D80: Highdef | E80: IFR1 | F80: IFR2
A81: =A65 -> Crustal commision error | B81: =E4 -> 0 | C81: =I4 -> 0 | D81: =M4 -> 0.07042726745 | E81: =E19*Q4 -> 0.06005330965 | F81: =F19*U4 -> 0.04849742261
A82: =A66 -> Correlated crustal omission | B82: =B20*E5 -> 0.1781909089 | C82: =C20*I5 -> 0.1781909089 | D82: =D20*M5 -> 0.1126836279 | E82: =E20*Q5 -> 0.03002665483 | F82: =F20*U5 -> 0.02424871131
A83: Root Sum Square | B83: =E7 -> 0.24 | C83: =I7 -> 0.2 | D83: =M7 -> 0.16 | E83: =Q7 -> 0.1 | F83: =U7 -> 0.08
B85: IGRF | C85: Standard | D85: HD #1 | E85: HD #2 | F85: IFR1 #1 | G85: IFR1 #2 | H85: IFR2 #1 | I85: IFR2 #2
A86: IGRF | B86: =B82*B82/(B83*B83) -> 0.55125 | C86: =B82*C82/B83/C83 -> 0.6615 | D86: =D82*D82/B83/D83 -> 0.3306666667 | E86: =D86 -> 0.3306666667 | F86: =E82*E82/B83/E83 -> 0.03756666667 | G86: =F86 -> 0.03756666667 | H86: =F82*F82/B83/F83 -> 0.030625 | I86: =H86 -> 0.030625
A87: Standard | C87: =C82*C82/C83/C83 -> 0.7938 | D87: =D82*D82/C83/D83 -> 0.3968 | E87: 0.3968 | F87: =E82*E82/C83/E83 -> 0.04508 | G87: =F87 -> 0.04508 | H87: =F82*F82/C83/F83 -> 0.03675 | I87: =H87 -> 0.03675
A88: HD #1 | D88: =(D82*D82+D81*D81)/D83/D83 -> 0.68975 | E88: =D82*D82/D83/D83 -> 0.496 | F88: =E82*E82/D83/E83 -> 0.05635 | G88: 0.05635 | H88: =F82*F82/D83/F83 -> 0.0459375 | I88: 0.0459375
A89: HD #2 | E89: =D88 -> 0.68975 | F89: =F88 -> 0.05635 | G89: 0.05635 | H89: =H88 -> 0.0459375 | I89: 0.0459375
A90: IFR1 #1 | F90: =(E82*E82+E81*E81)/E83/E83 -> 0.4508 | G90: =E82*E82/E83/E83 -> 0.09016 | H90: =(F82*F82+F81*F81)/E83/F83 -> 0.3675 | I90: =H91 -> 0.0735
A91: IFR1 #2 | G91: =F90 -> 0.4508 | H91: =F82*F82/E83/F83 -> 0.0735 | I91: =H90 -> 0.3675
A92: IFR2 #1 | H92: =(F82*F82+F81*F81)/F83/F83 -> 0.459375 | I92: =F82*F82/F83/F83 -> 0.091875
A93: IFR2 #2 | I93: =H92 -> 0.459375
A95: Average correlation in %
B96: IGRF | C96: Standard | D96: HD #1 | E96: HD #2 | F96: IFR1 #1 | G96: IFR1 #2 | H96: IFR2 #1 | I96: IFR2 #2
A97: IGRF | B97: =100*(B86+B70+B54+B38)/4 -> 54.53133029 | C97: =100*(C86+C70+C54+C38)/4 -> 65.54014211 | D97: 33.50437211 | E97: 33.50437211 | F97: 2.656365957 | G97: 2.656365957 | H97: 2.620766259 | I97: 2.620766259
A98: Standard | C98: 78.77289817 | D98: =100*(D87+D71+D55+D39)/4 -> 40.2676991 | E98: =100*(E87+E71+E55+E39)/4 -> 40.2676991 | F98: =100*(F87+F71+F55+F39)/4 -> 3.18971796 | G98: =100*(G87+G71+G55+G39)/4 -> 3.18971796 | H98: =100*(H87+H71+H55+H39)/4 -> 3.147876455 | I98: =100*(I87+I71+I55+I39)/4 -> 3.147876455
A99: HD #1 | D99: =100*(D88+D72+D56+D40)/4 -> 68.28924298 | E99: =100*(E88+E72+E56+E40)/4 -> 49.10687136 | F99: =100*(F88+F72+F56+F40)/4 -> 3.900418202 | G99: =100*(G88+G72+G56+G40)/4 -> 3.900418202 | H99: =100*(H88+H72+H56+H40)/4 -> 3.842151187 | I99: =100*(I88+I72+I56+I40)/4 -> 3.842151187
A100: HD #2 | E100: =100*(E89+E73+E57+E41)/4 -> 68.28924298 | F100: =100*(F89+F73+F57+F41)/4 -> 3.900418202 | G100: =100*(G89+G73+G57+G41)/4 -> 3.900418202 | H100: =100*(H89+H73+H57+H41)/4 -> 3.842151187 | I100: =100*(I89+I73+I57+I41)/4 -> 3.842151187
A101: IFR1 #1 | F101: =100*(F90+F74+F58+F42)/4 -> 38.69203333 | G101: =100*(G90+G74+G58+G42)/4 -> 7.738406667 | H101: =100*(H90+H74+H58+H42)/4 -> 39.07820778 | I101: =100*(I90+I74+I58+I42)/4 -> 7.815641556
A102: IFR1 #2 | G102: 38.69203333 | H102: =100*(H91+H75+H59+H43)/4 -> 7.815641556 | I102: =100*(I91+I75+I59+I43)/4 -> 39.07820778
A103: IFR2 #1 | H103: =100*(H92+H76+H60+H44)/4 -> 44.18358977 | I103: =100*(I92+I76+I60+I44)/4 -> 8.836717953
A104: IFR2 #2 | I104: =100*(I93+I77+I61+I45)/4 -> 44.18358977

Sheet Sheet3
